[Event "*** SCC Grand Prix: Titled Tuesday Blitz"]
[Site "Chess.com"]
[Date "2020.08.25"]
[Round "2"]
[White "cukin84"]
[Black "Korchmar_Vasiliy"]
[Result "1-0"]
[WhiteElo "2053"]
[BlackElo "2593"]
[TimeControl "180+1"]
[EndTime "10:19:53 PDT"]
[Termination "cukin84 won by resignation"]

1. e4 {[%clk 0:03:00.9]} 1... c5 {[%clk 0:03:00]} 2. Nc3 {[%clk 0:03:00.2]} 2...
d6 {[%clk 0:02:58.1]} 3. f4 {[%clk 0:02:59.5]} 3... Nc6 {[%clk 0:02:54.9]} 4.
Nf3 {[%clk 0:02:59.5]} 4... Nf6 {[%clk 0:02:52.9]} 5. Bb5 {[%clk 0:02:58.6]}
5... Bd7 {[%clk 0:02:52]} 6. d3 {[%clk 0:02:58.3]} 6... e6 {[%clk 0:02:49.8]} 7.
O-O {[%clk 0:02:57.5]} 7... Be7 {[%clk 0:02:50.1]} 8. Qe1 {[%clk 0:02:50.5]}
8... O-O {[%clk 0:02:30.4]} 9. Kh1 {[%clk 0:02:46.9]} 9... Nd4 {[%clk
0:02:07.2]} 10. Nxd4 {[%clk 0:02:40.4]} 10... cxd4 {[%clk 0:02:08.1]} 11. Bxd7
{[%clk 0:02:39.9]} 11... Nxd7 {[%clk 0:01:46.9]} 12. Ne2 {[%clk 0:02:38.5]}
12... Bf6 {[%clk 0:01:47.5]} 13. f5 {[%clk 0:02:33.2]} 13... Rc8 {[%clk
0:01:44.1]} 14. c4 {[%clk 0:02:20.1]} 14... dxc3 {[%clk 0:01:26]} 15. bxc3
{[%clk 0:02:18.9]} 15... d5 {[%clk 0:01:24.7]} 16. Rb1 {[%clk 0:02:07.2]} 16...
Nc5 {[%clk 0:01:17.5]} 17. Qg3 {[%clk 0:01:52.1]} 17... dxe4 {[%clk 0:01:14.6]}
18. d4 {[%clk 0:01:51]} 18... Nd3 {[%clk 0:01:05.8]} 19. Bh6 {[%clk 0:01:43.1]}
19... Kh8 {[%clk 0:01:01.7]} 20. Be3 {[%clk 0:01:31.2]} 20... exf5 {[%clk
0:00:36.6]} 21. Rxf5 {[%clk 0:01:29.7]} 21... b6 {[%clk 0:00:34]} 22. Rbf1
{[%clk 0:01:26.3]} 22... Qc7 {[%clk 0:00:19.5]} 23. Qh3 {[%clk 0:01:19.2]} 23...
Qd7 {[%clk 0:00:18.5]} 24. Qg3 {[%clk 0:00:43.6]} 24... Qc7 {[%clk 0:00:17.2]}
25. Qg4 {[%clk 0:00:39.6]} 25... Qc4 {[%clk 0:00:14.1]} 26. Rh5 {[%clk
0:00:35.7]} 26... g6 {[%clk 0:00:11.2]} 27. Rh3 {[%clk 0:00:32.7]} 27... Bg7
{[%clk 0:00:09.9]} 28. Qh4 {[%clk 0:00:31.4]} 28... h5 {[%clk 0:00:10]} 29. Ng3
{[%clk 0:00:25.4]} 29... Kg8 {[%clk 0:00:05.7]} 30. Rg1 {[%clk 0:00:21.9]} 30...
Qxa2 {[%clk 0:00:04.5]} 31. Nxh5 {[%clk 0:00:20.2]} 31... gxh5 {[%clk
0:00:03.9]} 32. Qxh5 {[%clk 0:00:20.4]} 32... f6 {[%clk 0:00:03.6]} 33. Qh7+
{[%clk 0:00:16]} 33... Kf7 {[%clk 0:00:03.8]} 34. Rg3 {[%clk 0:00:16.3]} 34...
Rg8 {[%clk 0:00:04.1]} 35. Qg6+ {[%clk 0:00:15.6]} 35... Kf8 {[%clk 0:00:03.2]}
36. Qxe4 {[%clk 0:00:15.4]} 36... Nf2+ {[%clk 0:00:02.5]} 37. Bxf2 {[%clk
0:00:15.2]} 37... Qxf2 {[%clk 0:00:03.4]} 38. Qe6 {[%clk 0:00:14.3]} 38... Re8
{[%clk 0:00:03.3]} 39. Qd6+ {[%clk 0:00:13.9]} 39... Kf7 {[%clk 0:00:03.9]} 40.
Qd5+ {[%clk 0:00:13.7]} 40... Kf8 {[%clk 0:00:03.8]} 41. Qd6+ {[%clk 0:00:13.6]}
41... Kf7 {[%clk 0:00:03.7]} 42. Qd7+ {[%clk 0:00:13.5]} 42... Re7 {[%clk
0:00:04]} 43. Qd5+ {[%clk 0:00:12.9]} 43... Re6 {[%clk 0:00:04.5]} 44. Qd7+
{[%clk 0:00:12.8]} 44... Re7 {[%clk 0:00:04]} 45. Qd5+ {[%clk 0:00:12.9]} 45...
Ke8 {[%clk 0:00:03.8]} 46. Qxg8+ {[%clk 0:00:11.6]} 46... Kd7 {[%clk 0:00:03.6]}
47. Rxg7 {[%clk 0:00:11.6]} 1-0

[Event "*** SCC Grand Prix: Titled Tuesday Blitz"]
[Site "Chess.com"]
[Date "2020.08.25"]
[Round "2"]
[White "profofchess"]
[Black "ARTHURMOTIVATOR"]
[Result "0-1"]
[WhiteElo "2437"]
[BlackElo "2250"]
[TimeControl "180+1"]
[EndTime "10:19:53 PDT"]
[Termination "ARTHURMOTIVATOR won by resignation"]

1. e4 {[%clk 0:03:00.9]} 1... c6 {[%clk 0:02:58]} 2. Nf3 {[%clk 0:03:00.4]} 2...
d5 {[%clk 0:02:54.5]} 3. Nc3 {[%clk 0:03:01.3]} 3... dxe4 {[%clk 0:02:53.7]} 4.
Nxe4 {[%clk 0:03:00.6]} 4... Nf6 {[%clk 0:02:52.7]} 5. Qe2 {[%clk 0:03:00.9]}
5... Bf5 {[%clk 0:02:46]} 6. Nxf6+ {[%clk 0:03:00]} 6... gxf6 {[%clk 0:02:43.7]}
7. d3 {[%clk 0:03:00.9]} 7... e6 {[%clk 0:02:37.7]} 8. g3 {[%clk 0:03:00.5]}
8... Nd7 {[%clk 0:02:30.1]} 9. Bg2 {[%clk 0:03:00.5]} 9... Bd6 {[%clk
0:02:27.2]} 10. Nh4 {[%clk 0:02:36]} 10... Bg6 {[%clk 0:02:20.8]} 11. O-O {[%clk
0:02:35.2]} 11... Qc7 {[%clk 0:02:08.9]} 12. Bh6 {[%clk 0:02:30.3]} 12... O-O-O
{[%clk 0:01:55.2]} 13. a4 {[%clk 0:02:30.1]} 13... f5 {[%clk 0:01:50.3]} 14. a5
{[%clk 0:02:28.2]} 14... a6 {[%clk 0:01:43.8]} 15. Rfb1 {[%clk 0:01:50.2]} 15...
f4 {[%clk 0:01:31.6]} 16. b4 {[%clk 0:01:35.5]} 16... fxg3 {[%clk 0:01:27.6]}
17. hxg3 {[%clk 0:01:36.4]} 17... Be5 {[%clk 0:01:06.1]} 18. Ra3 {[%clk
0:01:27]} 18... Bf6 {[%clk 0:01:04.7]} 19. Nf3 {[%clk 0:01:18.3]} 19... Bh5
{[%clk 0:01:02.8]} 20. Qe3 {[%clk 0:01:13.2]} 20... Bxf3 {[%clk 0:00:46.4]} 21.
Qxf3 {[%clk 0:01:04.6]} 21... Bd4 {[%clk 0:00:35]} 22. c3 {[%clk 0:00:47.7]}
22... Ne5 {[%clk 0:00:31.3]} 23. Qe4 {[%clk 0:00:44.3]} 23... Bxf2+ {[%clk
0:00:30.5]} 24. Kxf2 {[%clk 0:00:40.8]} 24... Nxd3+ {[%clk 0:00:30.5]} 25. Kg1
{[%clk 0:00:40.5]} 25... Qxg3 {[%clk 0:00:29]} 26. Qf3 {[%clk 0:00:34]} 26...
Qg6 {[%clk 0:00:27.6]} 27. Be3 {[%clk 0:00:27]} 27... Rhg8 {[%clk 0:00:27.3]}
28. b5 {[%clk 0:00:21.2]} 28... Ne5 {[%clk 0:00:23.1]} 29. Qf1 {[%clk
0:00:18.9]} 29... Ng4 {[%clk 0:00:20.6]} 30. Bf4 {[%clk 0:00:14.4]} 30... e5
{[%clk 0:00:20.5]} 31. bxc6 {[%clk 0:00:07.9]} 31... exf4 {[%clk 0:00:17.7]} 32.
cxb7+ {[%clk 0:00:07.3]} 32... Kb8 {[%clk 0:00:17.9]} 33. Qxf4+ {[%clk
0:00:06.7]} 33... Qd6 {[%clk 0:00:18]} 34. Qxd6+ {[%clk 0:00:06.8]} 34... Rxd6
{[%clk 0:00:18.2]} 35. Rab3 {[%clk 0:00:04.7]} 35... Ne3 {[%clk 0:00:17.4]} 36.
R3b2 {[%clk 0:00:03.7]} 36... Rdg6 {[%clk 0:00:16.3]} 37. Rf1 {[%clk 0:00:02.4]}
37... Rxg2+ {[%clk 0:00:16]} 38. Rxg2 {[%clk 0:00:02.2]} 38... Rxg2+ {[%clk
0:00:15.9]} 39. Kh1 {[%clk 0:00:03.1]} 39... Nxf1 {[%clk 0:00:16.1]} 40. Kxg2
{[%clk 0:00:03.5]} 40... Ne3+ {[%clk 0:00:16.3]} 41. Kf3 {[%clk 0:00:03.9]}
41... Nd5 {[%clk 0:00:16.4]} 42. Ke4 {[%clk 0:00:04.1]} 42... Nxc3+ {[%clk
0:00:16.4]} 43. Kf5 {[%clk 0:00:05]} 43... Nb5 {[%clk 0:00:15.7]} 44. Kf6 {[%clk
0:00:05.9]} 44... Nd4 {[%clk 0:00:15.6]} 45. Kxf7 {[%clk 0:00:06.8]} 45... Nb3
{[%clk 0:00:15.9]} 46. Kg7 {[%clk 0:00:07.1]} 46... Nxa5 {[%clk 0:00:16.2]} 47.
Kxh7 {[%clk 0:00:08]} 47... Kxb7 {[%clk 0:00:16.4]} 48. Kg6 {[%clk 0:00:08.9]}
48... Kc6 {[%clk 0:00:16.8]} 49. Kf5 {[%clk 0:00:09.8]} 49... Kc5 {[%clk
0:00:17.2]} 50. Ke4 {[%clk 0:00:10.7]} 50... Kc4 {[%clk 0:00:17.6]} 51. Ke3
{[%clk 0:00:11.6]} 51... Kc3 {[%clk 0:00:18.1]} 52. Ke2 {[%clk 0:00:12.1]} 52...
Kc2 {[%clk 0:00:18.3]} 53. Ke3 {[%clk 0:00:12.8]} 53... Nb3 {[%clk 0:00:18.6]}
54. Ke4 {[%clk 0:00:12.7]} 54... a5 {[%clk 0:00:18.9]} 55. Kd5 {[%clk
0:00:13.3]} 55... a4 {[%clk 0:00:19.4]} 56. Kc4 {[%clk 0:00:14.2]} 56... a3
{[%clk 0:00:19.9]} 57. Kb4 {[%clk 0:00:15.1]} 57... a2 {[%clk 0:00:20.3]} 0-1

[Event "*** SCC Grand Prix: Titled Tuesday Blitz"]
[Site "Chess.com"]
[Date "2020.08.25"]
[Round "2"]
[White "gusmaster2262"]
[Black "SharapovEvgeny"]
[Result "0-1"]
[WhiteElo "2187"]
[BlackElo "2426"]
[TimeControl "180+1"]
[EndTime "10:19:54 PDT"]
[Termination "SharapovEvgeny won on time"]

1. Nf3 {[%clk 0:03:00.9]} 1... c5 {[%clk 0:02:59.5]} 2. g3 {[%clk 0:02:59.3]}
2... Nc6 {[%clk 0:02:58.9]} 3. Bg2 {[%clk 0:02:57]} 3... e5 {[%clk 0:02:57.7]}
4. d3 {[%clk 0:02:55.7]} 4... g6 {[%clk 0:02:57.2]} 5. O-O {[%clk 0:02:54.2]}
5... Bg7 {[%clk 0:02:57.2]} 6. e4 {[%clk 0:02:50.6]} 6... Nge7 {[%clk 0:02:57]}
7. c3 {[%clk 0:02:47.2]} 7... O-O {[%clk 0:02:56.5]} 8. Nbd2 {[%clk 0:02:46.5]}
8... d5 {[%clk 0:02:55.3]} 9. Qe2 {[%clk 0:02:44.5]} 9... d4 {[%clk 0:02:54.9]}
10. cxd4 {[%clk 0:02:38.6]} 10... cxd4 {[%clk 0:02:50.3]} 11. b3 {[%clk
0:02:38.6]} 11... h6 {[%clk 0:02:45.8]} 12. Ba3 {[%clk 0:02:34.6]} 12... Be6
{[%clk 0:02:43.5]} 13. Rac1 {[%clk 0:02:33.3]} 13... Rc8 {[%clk 0:02:42.7]} 14.
Nc4 {[%clk 0:02:27.9]} 14... Qd7 {[%clk 0:02:35.7]} 15. Nfd2 {[%clk 0:02:17.3]}
15... b5 {[%clk 0:02:29.5]} 16. Nd6 {[%clk 0:02:13.4]} 16... Rb8 {[%clk
0:02:28.4]} 17. Bc5 {[%clk 0:02:08]} 17... Rfd8 {[%clk 0:02:20.3]} 18. f4 {[%clk
0:01:55.2]} 18... Nc8 {[%clk 0:02:16.9]} 19. Nxc8 {[%clk 0:01:43.6]} 19... Rbxc8
{[%clk 0:02:16.1]} 20. Nf3 {[%clk 0:01:36.7]} 20... Bg4 {[%clk 0:01:55.2]} 21.
f5 {[%clk 0:01:31.7]} 21... gxf5 {[%clk 0:01:53.7]} 22. exf5 {[%clk 0:01:28.1]}
22... Bxf5 {[%clk 0:01:53.4]} 23. Nh4 {[%clk 0:01:20.5]} 23... Bg4 {[%clk
0:01:50.3]} 24. Qf2 {[%clk 0:01:02.4]} 24... Be6 {[%clk 0:01:40.8]} 25. Be4
{[%clk 0:01:01.8]} 25... Ne7 {[%clk 0:01:39.9]} 26. Qf3 {[%clk 0:00:46.8]} 26...
Rf8 {[%clk 0:01:23.5]} 27. Qh5 {[%clk 0:00:40.6]} 27... Rxc5 {[%clk 0:01:18]}
28. Rxc5 {[%clk 0:00:34]} 28... f5 {[%clk 0:01:17.9]} 29. Bg2 {[%clk 0:00:22.5]}
29... Bf7 {[%clk 0:01:10]} 30. Qf3 {[%clk 0:00:16.6]} 30... Qd6 {[%clk
0:01:03.9]} 31. Rfc1 {[%clk 0:00:14.9]} 31... e4 {[%clk 0:01:00]} 32. dxe4
{[%clk 0:00:13.9]} 32... d3 {[%clk 0:01:00.3]} 33. e5 {[%clk 0:00:11.8]} 33...
Bxe5 {[%clk 0:00:58.1]} 34. Rxe5 {[%clk 0:00:04.7]} 34... Qxe5 {[%clk
0:00:53.6]} 35. Qxd3 {[%clk 0:00:05.1]} 35... f4 {[%clk 0:00:53.4]} 36. Be4
{[%clk 0:00:03.4]} 36... fxg3 {[%clk 0:00:52]} 37. hxg3 {[%clk 0:00:02.8]} 37...
Nd5 {[%clk 0:00:48.5]} 38. Bxd5 {[%clk 0:00:02]} 38... Qxd5 {[%clk 0:00:48]} 39.
Qxd5 {[%clk 0:00:02]} 39... Bxd5 {[%clk 0:00:48]} 40. Ng6 {[%clk 0:00:02]} 40...
Re8 {[%clk 0:00:40.9]} 41. Nf4 {[%clk 0:00:02.3]} 41... Bf7 {[%clk 0:00:38.2]}
42. Rc7 {[%clk 0:00:02]} 42... a5 {[%clk 0:00:37]} 43. Rb7 {[%clk 0:00:02.1]}
43... a4 {[%clk 0:00:34.5]} 44. Ra7 {[%clk 0:00:02.3]} 44... axb3 {[%clk
0:00:34.2]} 45. axb3 {[%clk 0:00:02.4]} 45... Bxb3 {[%clk 0:00:33.9]} 46. Rb7
{[%clk 0:00:02.8]} 46... Bc4 {[%clk 0:00:32.9]} 47. Rb6 {[%clk 0:00:02.9]} 47...
Kg7 {[%clk 0:00:32.1]} 48. Nh5+ {[%clk 0:00:03.3]} 48... Kf7 {[%clk 0:00:31]}
49. Nf6 {[%clk 0:00:02.4]} 49... Re6 {[%clk 0:00:29.8]} 50. Rxe6 {[%clk
0:00:01.2]} 50... Kxe6 {[%clk 0:00:30]} 51. Ne4 {[%clk 0:00:01.4]} 51... Kd5
{[%clk 0:00:29.6]} 52. Nc3+ {[%clk 0:00:01.1]} 52... Kd4 {[%clk 0:00:28.6]} 0-1

[Event "*** SCC Grand Prix: Titled Tuesday Blitz"]
[Site "Chess.com"]
[Date "2020.08.25"]
[Round "2"]
[White "chenxiaoyuer"]
[Black "mohssenbinaddi"]
[Result "1-0"]
[WhiteElo "2423"]
[BlackElo "2187"]
[TimeControl "180+1"]
[EndTime "10:19:54 PDT"]
[Termination "chenxiaoyuer won by resignation"]

1. e4 {[%clk 0:03:00.9]} 1... c6 {[%clk 0:02:58.4]} 2. d4 {[%clk 0:03:00.3]}
2... d5 {[%clk 0:02:59.3]} 3. Nd2 {[%clk 0:02:59.6]} 3... dxe4 {[%clk
0:02:58.8]} 4. Nxe4 {[%clk 0:03:00.5]} 4... Bf5 {[%clk 0:02:58.7]} 5. Ng3 {[%clk
0:03:00.5]} 5... Bg6 {[%clk 0:02:59.1]} 6. Nh3 {[%clk 0:03:00.5]} 6... e5 {[%clk
0:02:58.5]} 7. dxe5 {[%clk 0:02:55]} 7... Qa5+ {[%clk 0:02:58.4]} 8. c3 {[%clk
0:02:36.1]} 8... Qxe5+ {[%clk 0:02:59.3]} 9. Be2 {[%clk 0:02:35.9]} 9... Nd7
{[%clk 0:02:52.5]} 10. O-O {[%clk 0:02:34.9]} 10... Ngf6 {[%clk 0:02:40.8]} 11.
Bf3 {[%clk 0:02:24.2]} 11... O-O-O {[%clk 0:02:01.7]} 12. Qa4 {[%clk 0:02:14.5]}
12... a6 {[%clk 0:01:45]} 13. Bf4 {[%clk 0:01:24.3]} 13... Qb5 {[%clk
0:01:42.5]} 14. Qxb5 {[%clk 0:01:24.1]} 14... axb5 {[%clk 0:01:33.8]} 15. a4
{[%clk 0:01:14.3]} 15... bxa4 {[%clk 0:01:13.8]} 16. Rxa4 {[%clk 0:01:12.7]}
16... Nb6 {[%clk 0:01:13.6]} 17. Ra7 {[%clk 0:01:11.4]} 17... Bd6 {[%clk
0:01:09.1]} 18. Rfa1 {[%clk 0:01:00.2]} 18... Rhe8 {[%clk 0:01:02]} 19. Bxd6
{[%clk 0:00:51.6]} 19... Rxd6 {[%clk 0:00:58.9]} 20. Nf4 {[%clk 0:00:51.3]}
20... Kc7 {[%clk 0:00:54.9]} 21. h4 {[%clk 0:00:50.3]} 21... Rd2 {[%clk
0:00:50.5]} 22. h5 {[%clk 0:00:43.8]} 22... Be4 {[%clk 0:00:46.9]} 23. Bxe4
{[%clk 0:00:31.5]} 23... Nxe4 {[%clk 0:00:47.8]} 24. Re1 {[%clk 0:00:29.5]}
24... Nd6 {[%clk 0:00:42.8]} 25. Rxe8 {[%clk 0:00:26.6]} 25... Nxe8 {[%clk
0:00:43.7]} 26. b4 {[%clk 0:00:22.6]} 26... Nd6 {[%clk 0:00:38.8]} 27. Ra1
{[%clk 0:00:17.9]} 27... Nb5 {[%clk 0:00:37.2]} 28. Re1 {[%clk 0:00:17.5]} 28...
Nxc3 {[%clk 0:00:34.6]} 29. Re7+ {[%clk 0:00:17.2]} 29... Rd7 {[%clk 0:00:35.5]}
30. Re8 {[%clk 0:00:15.1]} 30... Nbd5 {[%clk 0:00:33.6]} 31. Nd3 {[%clk
0:00:12.8]} 31... Re7 {[%clk 0:00:27.4]} 32. Rh8 {[%clk 0:00:12.7]} 32... h6
{[%clk 0:00:26.5]} 33. Nf5 {[%clk 0:00:11.8]} 33... Rd7 {[%clk 0:00:21.4]} 34.
Nc5 {[%clk 0:00:09.8]} 34... Rd8 {[%clk 0:00:19.9]} 35. Rxd8 {[%clk 0:00:09.6]}
35... Kxd8 {[%clk 0:00:19]} 36. Nxg7 {[%clk 0:00:08.8]} 36... Nxb4 {[%clk
0:00:16.9]} 37. Nf5 {[%clk 0:00:05.6]} 37... Kc7 {[%clk 0:00:17.8]} 38. Nxh6
{[%clk 0:00:05.4]} 38... b6 {[%clk 0:00:17.3]} 39. Nb3 {[%clk 0:00:04.2]} 39...
c5 {[%clk 0:00:16.9]} 40. Nxf7 {[%clk 0:00:04.4]} 40... c4 {[%clk 0:00:17.8]}
41. Nd4 {[%clk 0:00:04.3]} 41... Nc6 {[%clk 0:00:14.6]} 42. Nxc6 {[%clk
0:00:03.8]} 42... Kxc6 {[%clk 0:00:14.5]} 43. h6 {[%clk 0:00:04.7]} 43... Ne2+
{[%clk 0:00:14.2]} 44. Kf1 {[%clk 0:00:04.3]} 44... Nf4 {[%clk 0:00:15.1]} 45.
h7 {[%clk 0:00:04.2]} 45... Ng6 {[%clk 0:00:16]} 46. Ne5+ {[%clk 0:00:04.4]}
46... Kd5 {[%clk 0:00:16.9]} 47. Nxg6 {[%clk 0:00:04.3]} 47... c3 {[%clk
0:00:16.9]} 48. h8=Q {[%clk 0:00:05.2]} 48... c2 {[%clk 0:00:17.8]} 49. Qa1
{[%clk 0:00:06]} 49... Kc4 {[%clk 0:00:17]} 50. Qc1 {[%clk 0:00:06.9]} 50... Kb3
{[%clk 0:00:17.9]} 51. Ne5 {[%clk 0:00:07.1]} 51... b5 {[%clk 0:00:18.8]} 52.
Nc6 {[%clk 0:00:07.7]} 52... b4 {[%clk 0:00:19.7]} 53. Nxb4 {[%clk 0:00:08.2]}
53... Kxb4 {[%clk 0:00:19.5]} 54. Qxc2 {[%clk 0:00:09.1]} 1-0

[Event "*** SCC Grand Prix: Titled Tuesday Blitz"]
[Site "Chess.com"]
[Date "2020.08.25"]
[Round "2"]
[White "phoenix_sjh"]
[Black "GOGIEFF"]
[Result "0-1"]
[WhiteElo "2537"]
[BlackElo "2855"]
[TimeControl "180+1"]
[EndTime "10:19:56 PDT"]
[Termination "GOGIEFF won by resignation"]

1. d4 {[%clk 0:03:00.9]} 1... Nf6 {[%clk 0:02:58.4]} 2. c4 {[%clk 0:03:01.2]}
2... g6 {[%clk 0:02:57.8]} 3. Nc3 {[%clk 0:03:01.3]} 3... Bg7 {[%clk 0:02:57.3]}
4. e4 {[%clk 0:03:01.4]} 4... d6 {[%clk 0:02:57.7]} 5. Be2 {[%clk 0:03:01.5]}
5... O-O {[%clk 0:02:57.4]} 6. Nf3 {[%clk 0:03:01.8]} 6... e5 {[%clk 0:02:56.6]}
7. O-O {[%clk 0:03:02]} 7... Nc6 {[%clk 0:02:55.9]} 8. d5 {[%clk 0:03:02.2]}
8... Ne7 {[%clk 0:02:55.9]} 9. Ne1 {[%clk 0:03:02.5]} 9... Nd7 {[%clk
0:02:54.6]} 10. Be3 {[%clk 0:03:02.7]} 10... f5 {[%clk 0:02:54.2]} 11. f3 {[%clk
0:03:03.1]} 11... Nf6 {[%clk 0:02:51.4]} 12. Nd3 {[%clk 0:03:03]} 12... c5
{[%clk 0:02:51.2]} 13. b4 {[%clk 0:02:57.5]} 13... b6 {[%clk 0:02:50.5]} 14. a4
{[%clk 0:02:50.3]} 14... f4 {[%clk 0:02:46.1]} 15. Bf2 {[%clk 0:02:49.9]} 15...
a5 {[%clk 0:02:42.2]} 16. bxc5 {[%clk 0:02:49.2]} 16... bxc5 {[%clk 0:02:41.7]}
17. Rb1 {[%clk 0:02:46.9]} 17... g5 {[%clk 0:02:41]} 18. Nb5 {[%clk 0:02:39.4]}
18... Ng6 {[%clk 0:02:33.6]} 19. Nxd6 {[%clk 0:02:09]} 19... Qxd6 {[%clk
0:02:31.7]} 20. Bxc5 {[%clk 0:02:08.1]} 20... Qc7 {[%clk 0:02:31.7]} 21. Qb3
{[%clk 0:01:52.8]} 21... Ba6 {[%clk 0:02:16.3]} 22. Rfc1 {[%clk 0:01:47.5]}
22... Rfb8 {[%clk 0:02:08.3]} 23. Bb6 {[%clk 0:01:43.6]} 23... Qf7 {[%clk
0:01:58.7]} 24. c5 {[%clk 0:01:41.4]} 24... Nd7 {[%clk 0:01:45.9]} 25. Qc3
{[%clk 0:01:15.4]} 25... Bf8 {[%clk 0:01:44.5]} 26. Kh1 {[%clk 0:01:02.9]} 26...
h5 {[%clk 0:01:38.1]} 27. Bf1 {[%clk 0:00:48.4]} 27... g4 {[%clk 0:01:34.1]} 28.
Nf2 {[%clk 0:00:24.8]} 28... Bxf1 {[%clk 0:01:28.6]} 29. Rxf1 {[%clk 0:00:25.7]}
29... Nxb6 {[%clk 0:01:16.2]} 30. cxb6 {[%clk 0:00:20]} 30... Bb4 {[%clk
0:01:17.1]} 31. Qc6 {[%clk 0:00:19.1]} 31... Ra6 {[%clk 0:01:12.9]} 32. Nd3
{[%clk 0:00:13.4]} 32... Raxb6 {[%clk 0:01:12.8]} 33. Qc4 {[%clk 0:00:12.7]}
33... Bd6 {[%clk 0:01:09.4]} 34. Rxb6 {[%clk 0:00:12.5]} 34... Rxb6 {[%clk
0:01:10.3]} 35. Qc8+ {[%clk 0:00:12.8]} 35... Kg7 {[%clk 0:01:09.6]} 36. fxg4
{[%clk 0:00:12.7]} 36... hxg4 {[%clk 0:01:07.5]} 37. Qxg4 {[%clk 0:00:12.6]}
37... Rb3 {[%clk 0:01:07.2]} 38. Nf2 {[%clk 0:00:12.7]} 38... Qb7 {[%clk
0:01:03.6]} 39. Nh3 {[%clk 0:00:10.8]} 39... Rb1 {[%clk 0:01:01]} 40. Qe2 {[%clk
0:00:10.5]} 40... Qb2 {[%clk 0:00:50.9]} 41. Qf3 {[%clk 0:00:10.1]} 41... Bc5
{[%clk 0:00:43.5]} 42. Ng5 {[%clk 0:00:07.5]} 42... Bf2 {[%clk 0:00:41.7]} 43.
Qd3 {[%clk 0:00:07.3]} 43... Qc1 {[%clk 0:00:39.3]} 44. Ne6+ {[%clk 0:00:04.5]}
44... Kf6 {[%clk 0:00:38.6]} 45. h4 {[%clk 0:00:02.1]} 45... Qxf1+ {[%clk
0:00:38]} 46. Qxf1 {[%clk 0:00:03]} 46... Rxf1+ {[%clk 0:00:38.1]} 47. Kh2
{[%clk 0:00:03.6]} 47... Bg3+ {[%clk 0:00:38.3]} 48. Kh3 {[%clk 0:00:03.8]}
48... Rh1+ {[%clk 0:00:38.7]} 49. Kg4 {[%clk 0:00:03.8]} 49... Rxh4+ {[%clk
0:00:39.6]} 50. Kf3 {[%clk 0:00:03.8]} 50... Rh1 {[%clk 0:00:40.5]} 51. Ke2
{[%clk 0:00:04.2]} 51... Re1+ {[%clk 0:00:40.5]} 52. Kd3 {[%clk 0:00:04.3]}
52... Re3+ {[%clk 0:00:41.4]} 53. Kc4 {[%clk 0:00:04.5]} 53... Rxe4+ {[%clk
0:00:42.3]} 54. Kb5 {[%clk 0:00:05.4]} 54... Re2 {[%clk 0:00:39.7]} 55. Kxa5
{[%clk 0:00:05.1]} 55... Rxg2 {[%clk 0:00:39.7]} 56. Kb5 {[%clk 0:00:04.9]}
56... Rb2+ {[%clk 0:00:38.6]} 57. Kc4 {[%clk 0:00:04.8]} 57... f3 {[%clk
0:00:38.6]} 58. Nc5 {[%clk 0:00:03.1]} 58... Rc2+ {[%clk 0:00:38.8]} 59. Kd3
{[%clk 0:00:03.2]} 59... Rxc5 {[%clk 0:00:39.7]} 0-1

[Event "*** SCC Grand Prix: Titled Tuesday Blitz"]
[Site "Chess.com"]
[Date "2020.08.25"]
[Round "2"]
[White "Man-Chuk"]
[Black "Sanyura"]
[Result "1-0"]
[WhiteElo "2820"]
[BlackElo "2514"]
[TimeControl "180+1"]
[EndTime "10:19:56 PDT"]
[Termination "Man-Chuk won by resignation"]

1. c4 {[%clk 0:03:00]} 1... e6 {[%clk 0:02:59.5]} 2. Nc3 {[%clk 0:02:59.1]} 2...
Nf6 {[%clk 0:03:00]} 3. e4 {[%clk 0:02:57.6]} 3... c5 {[%clk 0:02:59.1]} 4. e5
{[%clk 0:02:43.9]} 4... Ng8 {[%clk 0:02:58.2]} 5. Nf3 {[%clk 0:02:43.9]} 5...
Nc6 {[%clk 0:02:58.7]} 6. d4 {[%clk 0:02:41.8]} 6... cxd4 {[%clk 0:02:58.1]} 7.
Nxd4 {[%clk 0:02:41.7]} 7... Nxe5 {[%clk 0:02:58]} 8. Ndb5 {[%clk 0:02:33.6]}
8... d6 {[%clk 0:02:49.9]} 9. c5 {[%clk 0:02:04]} 9... a6 {[%clk 0:02:39.2]} 10.
Nxd6+ {[%clk 0:02:00.2]} 10... Bxd6 {[%clk 0:02:38.3]} 11. cxd6 {[%clk
0:01:44.3]} 11... Nf6 {[%clk 0:02:37.5]} 12. Be2 {[%clk 0:01:36.2]} 12... O-O
{[%clk 0:02:36.4]} 13. Bg5 {[%clk 0:01:34.9]} 13... h6 {[%clk 0:02:36.1]} 14.
Bh4 {[%clk 0:01:33.8]} 14... Bd7 {[%clk 0:02:21.5]} 15. O-O {[%clk 0:01:31]}
15... Ng6 {[%clk 0:02:20.8]} 16. Bg3 {[%clk 0:01:28.8]} 16... Qb6 {[%clk
0:02:10.6]} 17. Qd2 {[%clk 0:01:24.2]} 17... Rac8 {[%clk 0:02:07.7]} 18. Rfd1
{[%clk 0:01:23]} 18... e5 {[%clk 0:01:57.5]} 19. h4 {[%clk 0:01:17.5]} 19...
Rfe8 {[%clk 0:01:51.6]} 20. Rac1 {[%clk 0:01:11.1]} 20... Re6 {[%clk 0:01:37.2]}
21. h5 {[%clk 0:01:07.3]} 21... Nf4 {[%clk 0:01:36.3]} 22. Bxf4 {[%clk
0:01:00.6]} 22... exf4 {[%clk 0:01:37.2]} 23. Bf3 {[%clk 0:00:56.3]} 23... Rce8
{[%clk 0:01:04.1]} 24. b3 {[%clk 0:00:33.8]} 24... Re5 {[%clk 0:01:03.6]} 25.
Qxf4 {[%clk 0:00:30.5]} 25... Qa5 {[%clk 0:00:58.9]} 26. Bxb7 {[%clk 0:00:16.7]}
26... Ng4 {[%clk 0:00:52.4]} 27. Bd5 {[%clk 0:00:11.9]} 27... Kh8 {[%clk
0:00:29.9]} 28. Qxf7 {[%clk 0:00:09.2]} 28... Qc5 {[%clk 0:00:15]} 29. Ne4
{[%clk 0:00:09.2]} 29... Qxd5 {[%clk 0:00:09.8]} 30. Rxd5 {[%clk 0:00:08]} 30...
Rxe4 {[%clk 0:00:09.7]} 31. Rdd1 {[%clk 0:00:07.2]} 31... Ne5 {[%clk 0:00:07.5]}
32. Qd5 {[%clk 0:00:05.7]} 32... Rh4 {[%clk 0:00:06.3]} 33. Re1 {[%clk
0:00:05.3]} 33... Rxh5 {[%clk 0:00:06.5]} 34. f4 {[%clk 0:00:04.5]} 34... Be6
{[%clk 0:00:05.8]} 35. Qxe5 {[%clk 0:00:04]} 35... Rxe5 {[%clk 0:00:05.2]} 36.
Rxe5 {[%clk 0:00:04.9]} 36... Kg8 {[%clk 0:00:04.8]} 37. Rc7 {[%clk 0:00:05]}
37... Kf8 {[%clk 0:00:02.4]} 38. f5 {[%clk 0:00:05.5]} 38... Bf7 {[%clk
0:00:02.2]} 39. Rxe8+ {[%clk 0:00:06.4]} 39... Bxe8 {[%clk 0:00:02.5]} 40. d7
{[%clk 0:00:05.3]} 1-0